[Event "*** Titled Tuesday Blitz"]
[Site "Chess.com"]
[Date "2020.10.27"]
[Round "8"]
[White "CheckThis4"]
[Black "Qvalda"]
[Result "0-1"]
[WhiteElo "2557"]
[BlackElo "2398"]
[TimeControl "180+1"]
[EndTime "11:29:50 PDT"]
[Termination "Qvalda won by checkmate"]

1. e4 {[%clk 0:03:00.9]} 1... g6 {[%clk 0:03:00.2]} 2. d4 {[%clk 0:02:59.2]}
2... Bg7 {[%clk 0:03:00.7]} 3. Nc3 {[%clk 0:02:59.8]} 3... d6 {[%clk 0:03:01]}
4. Be3 {[%clk 0:02:59.3]} 4... a6 {[%clk 0:03:00.7]} 5. Qd2 {[%clk 0:02:54.3]}
5... Nd7 {[%clk 0:03:00.7]} 6. f3 {[%clk 0:02:53.8]} 6... b5 {[%clk 0:03:00.5]}
7. h4 {[%clk 0:02:53.3]} 7... h6 {[%clk 0:02:55]} 8. a4 {[%clk 0:02:50.7]} 8...
b4 {[%clk 0:02:54.5]} 9. Nce2 {[%clk 0:02:50.7]} 9... a5 {[%clk 0:02:52.9]} 10.
Nh3 {[%clk 0:02:49.2]} 10... Ba6 {[%clk 0:02:48.8]} 11. Nf2 {[%clk 0:02:44.6]}
11... c5 {[%clk 0:02:45.2]} 12. h5 {[%clk 0:02:38.7]} 12... g5 {[%clk
0:02:43.2]} 13. Ng3 {[%clk 0:02:29.7]} 13... Bxf1 {[%clk 0:02:42]} 14. Kxf1
{[%clk 0:02:26.5]} 14... e6 {[%clk 0:02:39.6]} 15. Rd1 {[%clk 0:02:23.8]} 15...
Ne7 {[%clk 0:02:34.6]} 16. d5 {[%clk 0:02:16.8]} 16... exd5 {[%clk 0:02:14.3]}
17. Nf5 {[%clk 0:02:16.1]} 17... Nxf5 {[%clk 0:02:08.4]} 18. exf5 {[%clk
0:02:15]} 18... d4 {[%clk 0:02:04.6]} 19. Ne4 {[%clk 0:02:07.3]} 19... O-O
{[%clk 0:01:10]} 20. Bf2 {[%clk 0:02:00.7]} 20... Nf6 {[%clk 0:01:09.2]} 21.
Nxg5 {[%clk 0:01:50.8]} 21... hxg5 {[%clk 0:00:38.7]} 22. h6 {[%clk 0:01:51.7]}
22... Nd5 {[%clk 0:00:30.1]} 23. hxg7 {[%clk 0:01:48.8]} 23... Kxg7 {[%clk
0:00:31]} 24. Bxd4+ {[%clk 0:01:34.3]} 24... cxd4 {[%clk 0:00:26.3]} 25. Qxd4+
{[%clk 0:01:35.2]} 25... Nf6 {[%clk 0:00:26.4]} 26. g4 {[%clk 0:01:34.6]} 26...
Rh8 {[%clk 0:00:23.8]} 27. Kf2 {[%clk 0:01:27.6]} 27... Qe7 {[%clk 0:00:09]} 28.
f4 {[%clk 0:01:01.3]} 28... Rxh1 {[%clk 0:00:07.4]} 29. Rxh1 {[%clk 0:00:59.8]}
29... Qa7 {[%clk 0:00:04.7]} 30. Qxa7 {[%clk 0:00:52.9]} 30... Rxa7 {[%clk
0:00:05.6]} 31. fxg5 {[%clk 0:00:53.7]} 31... Ne4+ {[%clk 0:00:05.9]} 32. Ke3
{[%clk 0:00:49.4]} 32... Nxg5 {[%clk 0:00:06.8]} 33. Kf4 {[%clk 0:00:49.8]}
33... f6 {[%clk 0:00:07]} 34. Rd1 {[%clk 0:00:49.3]} 34... Nf7 {[%clk
0:00:06.8]} 35. Rd5 {[%clk 0:00:47.1]} 35... Rc7 {[%clk 0:00:07.1]} 36. c3
{[%clk 0:00:34.7]} 36... bxc3 {[%clk 0:00:06.5]} 37. bxc3 {[%clk 0:00:35.6]}
37... Rxc3 {[%clk 0:00:04.4]} 38. Ke4 {[%clk 0:00:29.4]} 38... Rc4+ {[%clk
0:00:04.2]} 39. Kf3 {[%clk 0:00:28.7]} 39... Rxa4 {[%clk 0:00:04.3]} 40. Rb5
{[%clk 0:00:28.2]} 40... Ne5+ {[%clk 0:00:04]} 41. Kg3 {[%clk 0:00:28.2]} 41...
Rxg4+ {[%clk 0:00:04.5]} 42. Kh3 {[%clk 0:00:28.8]} 42... Rd4 {[%clk 0:00:04.4]}
43. Rxa5 {[%clk 0:00:28.5]} 43... Kh6 {[%clk 0:00:04.6]} 44. Ra1 {[%clk
0:00:25.9]} 44... Kg5 {[%clk 0:00:04.8]} 45. Rf1 {[%clk 0:00:26.6]} 45... Rh4+
{[%clk 0:00:04.2]} 46. Kg3 {[%clk 0:00:26.3]} 46... Rg4+ {[%clk 0:00:05.1]} 47.
Kh3 {[%clk 0:00:26.8]} 47... Rf4 {[%clk 0:00:05.5]} 48. Rd1 {[%clk 0:00:25.5]}
48... Kxf5 {[%clk 0:00:04.6]} 49. Rxd6 {[%clk 0:00:26.4]} 49... Rf3+ {[%clk
0:00:04.7]} 50. Kg2 {[%clk 0:00:26.1]} 50... Ra3 {[%clk 0:00:05.6]} 51. Rd4
{[%clk 0:00:26.2]} 51... Kg5 {[%clk 0:00:04.9]} 52. Rb4 {[%clk 0:00:26]} 52...
f5 {[%clk 0:00:04.9]} 53. Rb8 {[%clk 0:00:25.9]} 53... Ng4 {[%clk 0:00:04.8]}
54. Rg8+ {[%clk 0:00:26.8]} 54... Kf4 {[%clk 0:00:05]} 55. Rb8 {[%clk
0:00:26.7]} 55... Ra2+ {[%clk 0:00:05]} 56. Kf1 {[%clk 0:00:27.2]} 56... Kf3
{[%clk 0:00:04]} 57. Rb3+ {[%clk 0:00:27.7]} 57... Ne3+ {[%clk 0:00:04.1]} 58.
Ke1 {[%clk 0:00:28.6]} 58... Re2# {[%clk 0:00:04.2]} 0-1

[Event "*** Titled Tuesday Blitz"]
[Site "Chess.com"]
[Date "2020.10.27"]
[Round "8"]
[White "Zhani-Z"]
[Black "zmeeed67"]
[Result "1-0"]
[WhiteElo "2527"]
[BlackElo "2353"]
[TimeControl "180+1"]
[EndTime "11:29:50 PDT"]
[Termination "Zhani-Z won by resignation"]

1. e4 {[%clk 0:03:00.9]} 1... Nc6 {[%clk 0:03:00.1]} 2. Nf3 {[%clk 0:03:00.6]}
2... d6 {[%clk 0:03:00.3]} 3. d4 {[%clk 0:02:59.6]} 3... Nf6 {[%clk 0:03:00.6]}
4. Nc3 {[%clk 0:02:57.5]} 4... Bg4 {[%clk 0:03:00.9]} 5. d5 {[%clk 0:02:55.9]}
5... Nb8 {[%clk 0:02:58.2]} 6. Be2 {[%clk 0:02:53.5]} 6... c6 {[%clk 0:02:56.4]}
7. O-O {[%clk 0:02:52.4]} 7... g6 {[%clk 0:02:56]} 8. a4 {[%clk 0:02:50.2]} 8...
Bg7 {[%clk 0:02:55.9]} 9. a5 {[%clk 0:02:47.3]} 9... cxd5 {[%clk 0:02:52.3]} 10.
exd5 {[%clk 0:02:46.9]} 10... O-O {[%clk 0:02:52.1]} 11. Re1 {[%clk 0:02:45.2]}
11... Na6 {[%clk 0:02:45.1]} 12. Nd4 {[%clk 0:02:30.7]} 12... Bxe2 {[%clk
0:02:42.3]} 13. Qxe2 {[%clk 0:02:31.6]} 13... Re8 {[%clk 0:02:38.5]} 14. Be3
{[%clk 0:02:29.2]} 14... Nc7 {[%clk 0:02:37.4]} 15. Qc4 {[%clk 0:02:27.7]} 15...
a6 {[%clk 0:02:21.2]} 16. h3 {[%clk 0:02:22.4]} 16... Qd7 {[%clk 0:02:14.3]} 17.
Qb3 {[%clk 0:02:20.6]} 17... Rab8 {[%clk 0:02:12.3]} 18. Re2 {[%clk 0:02:18.6]}
18... Rec8 {[%clk 0:02:11.7]} 19. Rae1 {[%clk 0:02:17.5]} 19... Re8 {[%clk
0:01:53.3]} 20. Bg5 {[%clk 0:02:04.4]} 20... Na8 {[%clk 0:01:41.7]} 21. Na4
{[%clk 0:01:56]} 21... Qd8 {[%clk 0:01:35.9]} 22. Nb6 {[%clk 0:01:52.4]} 22...
Nxb6 {[%clk 0:01:33.2]} 23. axb6 {[%clk 0:01:53.3]} 23... Rc8 {[%clk 0:01:30.6]}
24. c4 {[%clk 0:01:42.9]} 24... Nxd5 {[%clk 0:00:38.5]} 25. cxd5 {[%clk
0:01:24.3]} 25... Bxd4 {[%clk 0:00:37.9]} 26. Bxe7 {[%clk 0:01:07.7]} 26... Qxb6
{[%clk 0:00:35.4]} 27. Qxb6 {[%clk 0:01:02]} 27... Bxb6 {[%clk 0:00:34.9]} 28.
Bxd6 {[%clk 0:01:02.6]} 28... Rxe2 {[%clk 0:00:33.2]} 29. Rxe2 {[%clk
0:01:02.8]} 29... Rd8 {[%clk 0:00:29.6]} 30. Bb4 {[%clk 0:00:38.1]} 30... Rxd5
{[%clk 0:00:25]} 31. Re7 {[%clk 0:00:31.7]} 31... Rb5 {[%clk 0:00:21.4]} 32.
Re8+ {[%clk 0:00:26]} 32... Kg7 {[%clk 0:00:20.8]} 33. Bc3+ {[%clk 0:00:26.9]}
33... Kh6 {[%clk 0:00:20.4]} 34. Re7 {[%clk 0:00:26.2]} 34... f5 {[%clk
0:00:18.1]} 35. Kf1 {[%clk 0:00:23.5]} 35... a5 {[%clk 0:00:14.9]} 36. Rxb7
{[%clk 0:00:22.9]} 36... a4 {[%clk 0:00:13.9]} 37. Bd2+ {[%clk 0:00:20.8]} 37...
Kh5 {[%clk 0:00:12.2]} 38. Be3 {[%clk 0:00:21.2]} 38... f4 {[%clk 0:00:10.8]}
39. Rxb6 {[%clk 0:00:20.2]} 39... Rxb6 {[%clk 0:00:10.4]} 40. Bxb6 {[%clk
0:00:19.6]} 40... Kg5 {[%clk 0:00:11]} 41. Ke2 {[%clk 0:00:19.3]} 41... Kf5
{[%clk 0:00:11.6]} 42. h4 {[%clk 0:00:18.5]} 42... Ke4 {[%clk 0:00:11.6]} 43.
Bc7 {[%clk 0:00:18.2]} 43... h6 {[%clk 0:00:10.9]} 44. f3+ {[%clk 0:00:18.2]}
44... Kf5 {[%clk 0:00:10.5]} 45. Kd3 {[%clk 0:00:18.3]} 45... g5 {[%clk
0:00:10.9]} 46. hxg5 {[%clk 0:00:18.7]} 46... hxg5 {[%clk 0:00:10.6]} 47. Kc4
{[%clk 0:00:19.2]} 47... g4 {[%clk 0:00:11.2]} 48. Kb4 {[%clk 0:00:19.4]} 48...
gxf3 {[%clk 0:00:10.1]} 49. gxf3 {[%clk 0:00:19.6]} 49... Ke6 {[%clk 0:00:10.8]}
50. Bxf4 {[%clk 0:00:19.7]} 50... Kd5 {[%clk 0:00:11.5]} 51. Kxa4 {[%clk
0:00:20.2]} 1-0

[Event "*** Titled Tuesday Blitz"]
[Site "Chess.com"]
[Date "2020.10.27"]
[Round "8"]
[White "GOGIEFF"]
[Black "exoticprincess"]
[Result "1/2-1/2"]
[WhiteElo "2906"]
[BlackElo "2876"]
[TimeControl "180+1"]
[EndTime "11:29:51 PDT"]
[Termination "Game drawn by repetition"]

1. d4 {[%clk 0:03:00.9]} 1... d5 {[%clk 0:02:59.5]} 2. c4 {[%clk 0:03:00.4]}
2... c6 {[%clk 0:02:59.9]} 3. cxd5 {[%clk 0:02:58.7]} 3... cxd5 {[%clk
0:02:59.1]} 4. Bg5 {[%clk 0:02:58.5]} 4... Nc6 {[%clk 0:02:57.4]} 5. Nc3 {[%clk
0:02:52]} 5... f6 {[%clk 0:02:55]} 6. e4 {[%clk 0:02:52]} 6... fxg5 {[%clk
0:02:23.8]} 7. exd5 {[%clk 0:02:50.5]} 7... Nb8 {[%clk 0:02:23.9]} 8. Nf3 {[%clk
0:02:45]} 8... g6 {[%clk 0:02:13.3]} 9. Nxg5 {[%clk 0:02:31.6]} 9... Bg7 {[%clk
0:02:11.6]} 10. Bb5+ {[%clk 0:02:21.9]} 10... Kf8 {[%clk 0:02:11.7]} 11. O-O
{[%clk 0:02:15.4]} 11... Nf6 {[%clk 0:02:10.4]} 12. Qb3 {[%clk 0:01:57.1]} 12...
h6 {[%clk 0:01:57.8]} 13. Nf3 {[%clk 0:01:57.1]} 13... Bf5 {[%clk 0:01:42.1]}
14. Rfe1 {[%clk 0:01:43.8]} 14... Na6 {[%clk 0:01:38.4]} 15. Ne5 {[%clk
0:01:35.3]} 15... Qd6 {[%clk 0:01:26.2]} 16. a3 {[%clk 0:01:30.1]} 16... Nc7
{[%clk 0:01:23.9]} 17. Nc4 {[%clk 0:01:09.5]} 17... Qd8 {[%clk 0:01:19.1]} 18.
Ne3 {[%clk 0:01:02.1]} 18... Nxb5 {[%clk 0:01:15.8]} 19. Nxb5 {[%clk 0:01:01.4]}
19... Bd7 {[%clk 0:01:10.6]} 20. Nc3 {[%clk 0:00:59.1]} 20... Qb6 {[%clk
0:01:09.1]} 21. Qa2 {[%clk 0:00:59.3]} 21... Rd8 {[%clk 0:00:55.4]} 22. Rad1
{[%clk 0:00:57.9]} 22... Be8 {[%clk 0:00:54.8]} 23. Nc4 {[%clk 0:00:52.4]} 23...
Qc7 {[%clk 0:00:54.8]} 24. Ne5 {[%clk 0:00:52.6]} 24... Qd6 {[%clk 0:00:53.9]}
25. Nc4 {[%clk 0:00:52.8]} 25... Qc7 {[%clk 0:00:48]} 26. Ne5 {[%clk 0:00:52]}
26... Rd6 {[%clk 0:00:46.7]} 27. Rc1 {[%clk 0:00:48.1]} 27... Qd8 {[%clk
0:00:45.5]} 28. Nc4 {[%clk 0:00:47.1]} 28... Ra6 {[%clk 0:00:45.4]} 29. Ne5
{[%clk 0:00:42.6]} 29... Kg8 {[%clk 0:00:45.6]} 30. d6+ {[%clk 0:00:40.4]} 30...
Kh7 {[%clk 0:00:45.7]} 31. dxe7 {[%clk 0:00:38.8]} 31... Qxd4 {[%clk 0:00:45.3]}
32. Rcd1 {[%clk 0:00:36.5]} 32... Qh4 {[%clk 0:00:44.8]} 33. Rd8 {[%clk
0:00:31.7]} 33... Ng4 {[%clk 0:00:36.1]} 34. Nxg4 {[%clk 0:00:23]} 34... Qxg4
{[%clk 0:00:37]} 35. h3 {[%clk 0:00:22.6]} 35... Qf5 {[%clk 0:00:36.5]} 36. Qc4
{[%clk 0:00:19.2]} 36... Rc6 {[%clk 0:00:28.7]} 37. Qb4 {[%clk 0:00:16]} 37...
Rb6 {[%clk 0:00:28.1]} 38. Qc4 {[%clk 0:00:14.1]} 38... Rxb2 {[%clk 0:00:27.8]}
39. Ne4 {[%clk 0:00:14.4]} 39... Bc6 {[%clk 0:00:25]} 40. Rxh8+ {[%clk
0:00:13.5]} 40... Bxh8 {[%clk 0:00:25.9]} 41. Qxc6 {[%clk 0:00:13.7]} 41... bxc6
{[%clk 0:00:25]} 42. e8=Q {[%clk 0:00:14.2]} 42... Bg7 {[%clk 0:00:23.5]} 43.
Qxc6 {[%clk 0:00:14.4]} 43... Ra2 {[%clk 0:00:23]} 44. a4 {[%clk 0:00:13.7]}
44... a5 {[%clk 0:00:21.8]} 45. g3 {[%clk 0:00:13.8]} 45... Bd4 {[%clk
0:00:18.7]} 46. Qc7+ {[%clk 0:00:13.6]} 46... Bg7 {[%clk 0:00:18.7]} 47. Kg2
{[%clk 0:00:12.7]} 47... Rxa4 {[%clk 0:00:18]} 48. Qb7 {[%clk 0:00:11.8]} 48...
Rb4 {[%clk 0:00:17.7]} 49. Qc6 {[%clk 0:00:11]} 49... Qb5 {[%clk 0:00:16.6]} 50.
Qxb5 {[%clk 0:00:09.8]} 50... Rxb5 {[%clk 0:00:17.5]} 51. Nd6 {[%clk 0:00:09.1]}
51... Rb2 {[%clk 0:00:16.2]} 52. Re7 {[%clk 0:00:08]} 52... Kg8 {[%clk
0:00:15.2]} 53. Re8+ {[%clk 0:00:08.3]} 53... Kh7 {[%clk 0:00:14.9]} 54. Re7
{[%clk 0:00:08.2]} 54... Kg8 {[%clk 0:00:15.2]} 55. Re8+ {[%clk 0:00:08.8]}
55... Kh7 {[%clk 0:00:15.4]} 56. Re7 {[%clk 0:00:08.7]} 1/2-1/2

[Event "*** Titled Tuesday Blitz"]
[Site "Chess.com"]
[Date "2020.10.27"]
[Round "8"]
[White "GregShahade"]
[Black "Sergey85Rodchenkov"]
[Result "1/2-1/2"]
[WhiteElo "2632"]
[BlackElo "2453"]
[TimeControl "180+1"]
[EndTime "11:29:53 PDT"]
[Termination "Game drawn by repetition"]

1. e4 {[%clk 0:03:00.9]} 1... c5 {[%clk 0:02:58.1]} 2. Nf3 {[%clk 0:03:01.1]}
2... d6 {[%clk 0:02:58.5]} 3. d4 {[%clk 0:03:01.5]} 3... cxd4 {[%clk 0:02:59]}
4. Nxd4 {[%clk 0:03:02.4]} 4... Nf6 {[%clk 0:02:59.5]} 5. Nc3 {[%clk 0:03:02.8]}
5... a6 {[%clk 0:03:00.1]} 6. Be3 {[%clk 0:03:02.4]} 6... e5 {[%clk 0:02:59.8]}
7. Nb3 {[%clk 0:03:02.4]} 7... Be7 {[%clk 0:02:59.3]} 8. f3 {[%clk 0:03:01.7]}
8... Be6 {[%clk 0:02:59.3]} 9. Qd2 {[%clk 0:02:58.6]} 9... Qc7 {[%clk
0:02:59.3]} 10. O-O-O {[%clk 0:02:58]} 10... b5 {[%clk 0:02:59.2]} 11. g4 {[%clk
0:02:56]} 11... O-O {[%clk 0:02:58.8]} 12. h4 {[%clk 0:02:51.5]} 12... b4 {[%clk
0:02:56.4]} 13. Nd5 {[%clk 0:02:48.5]} 13... Bxd5 {[%clk 0:02:56.6]} 14. exd5
{[%clk 0:02:49.4]} 14... a5 {[%clk 0:02:57]} 15. Kb1 {[%clk 0:02:39.5]} 15... a4
{[%clk 0:02:54.6]} 16. Nc1 {[%clk 0:02:39.7]} 16... Na6 {[%clk 0:02:53.7]} 17.
Bb5 {[%clk 0:02:33.4]} 17... Nc5 {[%clk 0:02:45.9]} 18. Qxb4 {[%clk 0:02:23.4]}
18... Rfb8 {[%clk 0:02:44]} 19. c4 {[%clk 0:02:18.5]} 19... Nfd7 {[%clk
0:02:30.9]} 20. Nd3 {[%clk 0:02:10.9]} 20... Nxd3 {[%clk 0:02:28.4]} 21. Rxd3
{[%clk 0:02:11.8]} 21... Nc5 {[%clk 0:02:28.7]} 22. Rd2 {[%clk 0:01:59.2]} 22...
Rb6 {[%clk 0:02:24.5]} 23. Rhd1 {[%clk 0:01:49]} 23... Rab8 {[%clk 0:02:20]} 24.
Bxc5 {[%clk 0:01:48.6]} 24... dxc5 {[%clk 0:02:19.5]} 25. Qxa4 {[%clk
0:01:32.7]} 25... Bd6 {[%clk 0:02:15.4]} 26. Qc2 {[%clk 0:01:30.4]} 26... Qe7
{[%clk 0:02:12]} 27. g5 {[%clk 0:01:26.2]} 27... g6 {[%clk 0:02:11.1]} 28. a4
{[%clk 0:01:25.4]} 28... Ra8 {[%clk 0:02:10.1]} 29. b3 {[%clk 0:01:23.7]} 29...
Rbb8 {[%clk 0:02:07.5]} 30. Qe4 {[%clk 0:01:23.5]} 30... Rf8 {[%clk 0:02:07.2]}
31. Rg2 {[%clk 0:01:18.2]} 31... f5 {[%clk 0:02:05.1]} 32. gxf6 {[%clk
0:01:18.3]} 32... Rxf6 {[%clk 0:02:05.6]} 33. h5 {[%clk 0:01:18.2]} 33... Qf7
{[%clk 0:02:01.3]} 34. hxg6 {[%clk 0:01:16.8]} 34... hxg6 {[%clk 0:02:00.4]} 35.
Rdg1 {[%clk 0:01:12.9]} 35... Kg7 {[%clk 0:02:00.6]} 36. Rg3 {[%clk 0:01:00.3]}
36... Rh8 {[%clk 0:01:59.4]} 37. a5 {[%clk 0:00:57.8]} 37... Rh6 {[%clk
0:01:51.2]} 38. a6 {[%clk 0:00:58]} 38... Qc7 {[%clk 0:01:44.9]} 39. Qg4 {[%clk
0:00:49.5]} 39... e4 {[%clk 0:01:40.8]} 40. Qd7+ {[%clk 0:00:41.6]} 40... Qxd7
{[%clk 0:01:39.7]} 41. Bxd7 {[%clk 0:00:42.5]} 41... Bxg3 {[%clk 0:01:39.9]} 42.
Rxg3 {[%clk 0:00:38.9]} 42... Rxa6 {[%clk 0:01:39.5]} 43. fxe4 {[%clk
0:00:31.2]} 43... Kf6 {[%clk 0:01:39.4]} 44. Ba4 {[%clk 0:00:26.9]} 44... Ke5
{[%clk 0:01:37.9]} 45. Kb2 {[%clk 0:00:22.8]} 45... Kxe4 {[%clk 0:01:36.2]} 46.
Rg5 {[%clk 0:00:20.6]} 46... Kf4 {[%clk 0:01:34]} 47. Rg1 {[%clk 0:00:20.6]}
47... g5 {[%clk 0:01:31.3]} 48. Rf1+ {[%clk 0:00:20.7]} 48... Ke5 {[%clk
0:01:30.6]} 49. Re1+ {[%clk 0:00:20.7]} 49... Kd4 {[%clk 0:01:30.7]} 50. Rd1+
{[%clk 0:00:20.6]} 50... Ke3 {[%clk 0:01:30.4]} 51. Rg1 {[%clk 0:00:21.3]} 51...
Rag6 {[%clk 0:01:26.4]} 52. Kc3 {[%clk 0:00:20.5]} 52... g4 {[%clk 0:01:25.7]}
53. Bd7 {[%clk 0:00:20.9]} 53... g3 {[%clk 0:01:24.7]} 54. Bf5 {[%clk
0:00:21.5]} 54... Rg5 {[%clk 0:01:23.4]} 55. Bd3 {[%clk 0:00:21.4]} 55... Kf2
{[%clk 0:01:22.6]} 56. Rf1+ {[%clk 0:00:21.3]} 56... Ke3 {[%clk 0:01:23]} 57.
Re1+ {[%clk 0:00:20.6]} 57... Kf2 {[%clk 0:01:21.5]} 58. Rf1+ {[%clk 0:00:20.9]}
58... Ke3 {[%clk 0:01:21.2]} 59. Re1+ {[%clk 0:00:21.3]} 59... Kf4 {[%clk
0:01:18.2]} 60. Rf1+ {[%clk 0:00:20.8]} 60... Ke5 {[%clk 0:01:15.7]} 61. Re1+
{[%clk 0:00:21]} 61... Kd6 {[%clk 0:01:15.9]} 62. Rg1 {[%clk 0:00:20.4]} 62...
Rh2 {[%clk 0:01:10.3]} 63. Be4 {[%clk 0:00:20.1]} 63... Re2 {[%clk 0:01:09.9]}
64. Kd3 {[%clk 0:00:20.4]} 64... Rb2 {[%clk 0:01:10]} 65. Ke3 {[%clk 0:00:20.4]}
65... Rxb3+ {[%clk 0:01:09.2]} 66. Kf4 {[%clk 0:00:20.9]} 66... Rg7 {[%clk
0:01:08.5]} 67. Rh1 {[%clk 0:00:21.4]} 67... Rc3 {[%clk 0:01:05.8]} 68. Rh6+
{[%clk 0:00:21]} 68... Kc7 {[%clk 0:01:04.6]} 69. d6+ {[%clk 0:00:20.9]} 69...
Kd8 {[%clk 0:01:04]} 70. Bf5 {[%clk 0:00:18.5]} 70... Rg8 {[%clk 0:00:58.4]} 71.
Rh7 {[%clk 0:00:18.9]} 71... Rf8 {[%clk 0:00:53.1]} 72. Rd7+ {[%clk 0:00:17.7]}
72... Ke8 {[%clk 0:00:53.3]} 73. Re7+ {[%clk 0:00:17.9]} 73... Kd8 {[%clk
0:00:53.4]} 74. Rd7+ {[%clk 0:00:18.3]} 74... Ke8 {[%clk 0:00:51.5]} 75. Re7+
{[%clk 0:00:15.8]} 75... Kd8 {[%clk 0:00:51.4]} 76. Rd7+ {[%clk 0:00:16]}
1/2-1/2

[Event "*** Titled Tuesday Blitz"]
[Site "Chess.com"]
[Date "2020.10.27"]
[Round "8"]
[White "oogee"]
[Black "Nemsko"]
[Result "1-0"]
[WhiteElo "2207"]
[BlackElo "2324"]
[TimeControl "180+1"]
[EndTime "11:29:55 PDT"]
[Termination "oogee won by resignation"]

1. d4 {[%clk 0:02:54.9]} 1... Nf6 {[%clk 0:02:59.7]} 2. c4 {[%clk 0:02:53.3]}
2... e6 {[%clk 0:02:59.9]} 3. Nf3 {[%clk 0:02:52.1]} 3... b6 {[%clk 0:02:59.7]}
4. a3 {[%clk 0:02:50.6]} 4... Bb7 {[%clk 0:02:58.6]} 5. Nc3 {[%clk 0:02:49.4]}
5... Be7 {[%clk 0:02:56.6]} 6. d5 {[%clk 0:02:31.9]} 6... d6 {[%clk 0:02:51.8]}
7. e4 {[%clk 0:02:31.3]} 7... e5 {[%clk 0:02:52]} 8. Be2 {[%clk 0:02:25.6]} 8...
a5 {[%clk 0:02:51.4]} 9. O-O {[%clk 0:02:23]} 9... Na6 {[%clk 0:02:50.7]} 10.
Be3 {[%clk 0:02:17.7]} 10... Nc5 {[%clk 0:02:49]} 11. Nd2 {[%clk 0:02:15.4]}
11... Qd7 {[%clk 0:02:44.3]} 12. b4 {[%clk 0:02:14]} 12... axb4 {[%clk
0:02:42.4]} 13. axb4 {[%clk 0:02:13.4]} 13... Rxa1 {[%clk 0:02:42.8]} 14. Qxa1
{[%clk 0:02:12.9]} 14... Na6 {[%clk 0:02:43]} 15. Rb1 {[%clk 0:02:00.4]} 15...
O-O {[%clk 0:02:41]} 16. f3 {[%clk 0:01:59.1]} 16... Ra8 {[%clk 0:02:39.5]} 17.
Qb2 {[%clk 0:01:58.5]} 17... Nh5 {[%clk 0:02:24.3]} 18. g3 {[%clk 0:01:53]}
18... g6 {[%clk 0:02:10.6]} 19. Qb3 {[%clk 0:01:36.9]} 19... Ng7 {[%clk
0:02:02.1]} 20. c5 {[%clk 0:01:35.4]} 20... dxc5 {[%clk 0:01:56.3]} 21. Bb5
{[%clk 0:01:23.6]} 21... Qd8 {[%clk 0:01:49.2]} 22. Nc4 {[%clk 0:01:02.2]} 22...
Bd6 {[%clk 0:01:30.6]} 23. bxc5 {[%clk 0:00:50.2]} 23... Bxc5 {[%clk 0:01:27.6]}
24. Ne2 {[%clk 0:00:43]} 24... Bxe3+ {[%clk 0:01:23.3]} 25. Qxe3 {[%clk
0:00:42.9]} 25... f6 {[%clk 0:01:08.8]} 26. f4 {[%clk 0:00:39.3]} 26... exf4
{[%clk 0:01:07.8]} 27. gxf4 {[%clk 0:00:39]} 27... Nc5 {[%clk 0:01:07]} 28. Rd1
{[%clk 0:00:32.3]} 28... Qe7 {[%clk 0:00:51.1]} 29. Ng3 {[%clk 0:00:27.7]} 29...
Ne8 {[%clk 0:00:33.4]} 30. e5 {[%clk 0:00:26.7]} 30... fxe5 {[%clk 0:00:25.3]}
31. fxe5 {[%clk 0:00:25.6]} 31... Rd8 {[%clk 0:00:19.2]} 32. Qf3 {[%clk
0:00:22]} 32... Qf8 {[%clk 0:00:11.7]} 33. Qg2 {[%clk 0:00:21.4]} 33... Ng7
{[%clk 0:00:11.4]} 34. Rf1 {[%clk 0:00:19.7]} 34... Qe7 {[%clk 0:00:10.7]} 35.
e6 {[%clk 0:00:19.2]} 35... Bxd5 {[%clk 0:00:09.5]} 36. Qf2 {[%clk 0:00:15.8]}
36... Bxe6 {[%clk 0:00:09]} 37. Ne5 {[%clk 0:00:13.2]} 37... Rf8 {[%clk
0:00:08.5]} 38. Qe2 {[%clk 0:00:12.6]} 38... Rxf1+ {[%clk 0:00:08.5]} 39. Qxf1
{[%clk 0:00:12.3]} 39... Qf8 {[%clk 0:00:07.9]} 40. Qe2 {[%clk 0:00:11.8]} 40...
Qe7 {[%clk 0:00:07.8]} 41. Nc6 {[%clk 0:00:11.5]} 41... Qd6 {[%clk 0:00:07.5]}
42. Ne4 {[%clk 0:00:11.4]} 42... Qd5 {[%clk 0:00:07]} 43. Nf6+ {[%clk
0:00:11.2]} 43... Kf7 {[%clk 0:00:07]} 44. Nxd5 {[%clk 0:00:11.6]} 44... Bxd5
{[%clk 0:00:07.9]} 45. Qe7+ {[%clk 0:00:11.4]} 45... Kg8 {[%clk 0:00:07.7]} 46.
Ne5 {[%clk 0:00:11.1]} 46... Nf5 {[%clk 0:00:06.9]} 47. Qe8+ {[%clk 0:00:10.3]}
47... Kg7 {[%clk 0:00:06.8]} 48. Bc6 {[%clk 0:00:09.6]} 48... Bxc6 {[%clk
0:00:05.2]} 49. Nxc6 {[%clk 0:00:09.8]} 49... b5 {[%clk 0:00:05.1]} 50. Qd8
{[%clk 0:00:09.2]} 50... Ne6 {[%clk 0:00:04.5]} 51. Qd7+ {[%clk 0:00:09.1]}
51... Kf6 {[%clk 0:00:04.7]} 52. Nd8 {[%clk 0:00:08.2]} 52... Nxd8 {[%clk
0:00:04.8]} 53. Qxd8+ {[%clk 0:00:08.5]} 53... Ke5 {[%clk 0:00:05.5]} 54. Qxc7+
{[%clk 0:00:08.8]} 54... Kd5 {[%clk 0:00:05.9]} 55. Qxh7 {[%clk 0:00:08.5]}
55... b4 {[%clk 0:00:05.3]} 56. Qxg6 {[%clk 0:00:08.7]} 56... Kc4 {[%clk
0:00:05.2]} 57. Qxf5 {[%clk 0:00:08.7]} 57... b3 {[%clk 0:00:05.7]} 58. Qb1
{[%clk 0:00:08.8]} 58... Kc3 {[%clk 0:00:06.1]} 59. h4 {[%clk 0:00:09.1]} 1-0